bitfinex/quotes_ETHUSD_20240716
["timestamp","ask_amount","ask_price","bid_price","bid_amount"]
[1721139763604,2.93739,3404.4,3403.2,1.254634]
[1721139763801,2.93734,3404.5,3403.6,2.93806]
[1721139764180,2.93738,3404.4,3403.6,2.93806]
[1721139764377,2.93782,3403.9,3403.0,2.308]
[1721139764609,0.293782,3403.8,3403.0,5.308]
[1721139764817,2.93798,3403.7,3403.0,5.308]
[1721139764997,2.93798,3403.7,3403.0,2.308]
[1721139765223,2.9384,3403.3,3402.7,0.1479347]
[1721139765504,6.463,3403.7,3402.7,3.0867047]
[1721139765505,2.93814,3403.6,3402.7,3.0867047]
[1721139765715,0.293782,3403.8,3402.7,3.45961415]
[1721139766017,2.93821,3403.5,3402.7,0.1479347]
[1721139766386,2.93808,3403.6,3402.7,3.0867547]
[1721139766718,2.93774,3404.0,3403.0,2.93852]
[1721139766876,6.895577,3404.7,3402.7,0.1466605]
[1721139766877,2.93735,3404.5,3403.2,2.4002]
[1721139767076,3.958417,3404.7,3403.3,0.298781]
[1721139767277,2.93677,3405.1,3403.9,2.88772]
[1721139767578,9.39974,3405.2,3404.1,2.4002]
[1721139767783,2.93702,3404.9,3404.1,2.4002]
[1721139767978,2.93704,3404.8,3404.1,2.4002]
[1721139768192,2.93677,3405.1,3404.1,2.4002]
[1721139768391,2.93729,3404.5,3403.5,10.23812]
[1721139768725,0.630777,3405.0,3403.6,2.4002]
[1721139768726,2.93764,3404.1,3403.6,2.4002]
[1721139769017,3.371,3404.7,3403.6,2.4002]
[1721139769221,2.93721,3404.6,3403.6,5.33819]
[1721139769380,3.371,3404.7,3403.6,5.33819]
[1721139769583,3.371,3404.7,3403.6,2.4002]
[1721139769584,2.93744,3404.4,3403.6,2.4002]
[1721139769879,2.9372,3404.6,3403.6,5.33825]
[1721139770079,2.9372,3404.6,3403.6,6.165892]
[1721139770578,3.092,3404.8,3403.6,6.165892]
[1721139770579,6.371,3405.2,3403.6,3.227842]
[1721139770788,2.93684,3405.1,3404.1,2.93757]
[1721139770987,2.93718,3404.7,3403.7,3.0]
[1721139771183,3.371,3404.7,3403.7,3.0]
[1721139771388,2.93744,3404.4,3403.6,2.4002]
[1721139771689,3.524925,3404.3,3403.6,2.4002]
[1721139771899,2.93772,3404.0,3403.0,5.40552]
[1721139772434,2.93795,3403.8,3403.0,2.467]
[1721139772925,2.93799,3403.7,3403.0,2.467]
[1721139773143,2.93799,3403.7,3403.0,5.467]
[1721139773351,2.93815,3403.5,3403.0,2.467]
[1721139774001,2.93842,3403.2,3402.7,0.1466605]
[1721139774204,2.93849,3403.1,3402.7,0.1466605]
[1721139774419,2.9386,3403.0,3402.7,0.1466605]
[1721139774730,2.93875,3402.8,3402.7,0.1466605]
[1721139775410,6.309,3403.7,3402.7,0.1466605]
[1721139775614,2.93855,3403.1,3402.7,0.1466605]
[1721139775816,2.93829,3403.4,3402.7,0.1466605]
[1721139776126,3.371,3404.2,3402.7,3.0854805]
[1721139776326,3.371,3404.2,3402.9,2.2688]
[1721139776327,2.93804,3403.7,3402.9,2.2688]
[1721139776834,2.93841,3403.2,3402.7,0.1466605]
[1721139777322,2.93839,3403.3,3402.7,0.1466605]
[1721139777323,2.93818,3403.5,3402.7,0.1466605]
[1721139777513,2.93818,3403.5,3402.7,2.4154605]
[1721139777849,2.9378,3403.9,3402.9,2.9386]
[1721139777993,3.568481,3404.1,3402.9,2.9386]
[1721139777994,3.568481,3404.1,3403.1,2.93844]
[1721139778191,2.93725,3404.6,3403.4,2.9382]
[1721139778397,2.93732,3404.5,3403.6,2.93799]
[1721139778702,2.93732,3404.5,3403.4,2.9382]
[1721139778703,2.93754,3404.2,3403.4,2.9382]
[1721139779026,2.93754,3404.2,3403.2,5.3159]
[1721139779027,2.93777,3404.0,3403.2,2.3775]
[1721139779199,2.93803,3403.7,3403.2,2.3775]
[1721139779817,2.93808,3403.6,3402.7,0.1466605]
[1721139780127,2.93803,3403.7,3402.7,3.0854405]
[1721139780329,2.93772,3404.0,3403.1,2.93842]
[1721139780696,2.93804,3403.7,3402.7,3.0854805]
[1721139780946,2.93783,3403.9,3403.0,2.93852]
[1721139781095,3.0,3404.5,3402.7,0.1466605]
[1721139781096,2.93805,3403.7,3402.7,0.1466605]
[1721139781517,2.93825,3403.4,3402.7,0.1466605]
[1721139781716,2.93786,3403.9,3402.7,3.0854705]
[1721139782026,2.93843,3403.2,3402.7,0.1466605]
[1721139782201,2.93866,3402.9,3402.7,0.1466605]
[1721139782625,2.93875,3402.8,3402.7,0.1466605]
[1721139783833,2.93866,3402.9,3402.7,0.1466605]
[1721139784243,2.93835,3403.3,3402.7,0.1466605]
[1721139784535,3.90503168,3404.1,3402.7,3.0854405]
[1721139784735,2.93816,3403.5,3402.8,2.57904405]
[1721139785234,0.39050317,3404.0,3402.8,2.57904405]
[1721139785235,3.32827317,3404.0,3403.0,2.93856]
[1721139785434,3.092,3404.3,3403.3,2.93831]
[1721139785435,2.93755,3404.2,3403.3,2.93831]
[1721139785735,0.3,3404.4,3403.3,2.93831]
[1721139786038,5.8984,3405.1,3402.8,2.57904405]
[1721139786039,2.93807,3403.6,3402.8,2.57904405]
[1721139786234,2.93807,3403.6,3402.9,3.0]
[1721139786926,6.02958,3404.2,3402.8,2.57904405]
[1721139786927,2.9382,3403.5,3402.8,2.2705]
[1721139787126,2.93787,3403.9,3402.8,2.2705]
[1721139787435,2.93798,3403.7,3402.8,5.20923]
[1721139787640,2.93858,3403.0,3402.8,2.2705]
[1721139787934,2.93858,3403.0,3402.7,0.1466605]
[1721139788138,2.93827,3403.4,3402.7,0.1466605]
[1721139788341,6.90503168,3404.1,3402.7,3.0854905]
[1721139788342,3.0,3404.1,3402.7,3.0854905]
[1721139788549,2.93758,3404.2,3403.0,2.93854]
[1721139788704,5.8756,3404.0,3403.1,5.548084]
[1721139788898,5.93721,3404.6,3403.1,2.609654]
[1721139788899,2.93759,3404.2,3403.1,2.609654]
[1721139789104,2.93806,3403.7,3403.1,2.3158]
[1721139789345,2.93761,3404.2,3403.1,2.3158]
[1721139789539,2.93731,3404.5,3403.2,2.93841]
[1721139789760,2.93731,3404.5,3403.4,2.93823]
[1721139789976,2.93714,3404.7,3403.5,2.93812]
[1721139790258,2.93734,3404.5,3403.6,0.293812]
[1721139790468,2.93688,3405.0,3403.9,2.93775]
[1721139790678,2.93688,3405.0,3404.0,3.48766]
[1721139790679,2.93687,3405.0,3404.0,3.48766]
[1721139790813,2.93662,3405.3,3404.6,2.93719]
[1721139791020,2.93662,3405.3,3404.1,2.3158]
[1721139791021,2.93591,3406.1,3404.1,2.3158]
[1721139791212,3.559,3406.3,3404.1,2.3158]
[1721139791213,2.93657,3405.4,3404.5,2.93726]
[1721139791670,0.649491,3406.0,3404.6,2.37453953]
[1721139791811,2.93614,3405.9,3404.9,2.93693]
[1721139792272,3.559,3406.9,3405.3,2.93652]
[1721139792417,2.93548,3406.6,3405.6,2.93627]
[1721139792611,2.93568,3406.4,3405.6,0.587277]
[1721139792928,2.93568,3406.4,3405.2,2.93664]
[1721139793254,2.93591,3406.1,3405.2,2.93664]
[1721139793412,2.93568,3406.4,3405.3,2.93659]
[1721139793862,2.93514,3407.0,3405.4,2.93932498]
[1721139794154,2.93424,3408.1,3405.7,2.93616]
[1721139794155,2.93538,3406.8,3405.7,2.93616]
[1721139794367,2.93536,3406.8,3405.8,3.823417]
[1721139794651,2.93536,3406.8,3405.9,2.93607]
[1721139794958,2.9348,3407.4,3405.8,0.887257]
[1721139794959,2.93496,3407.2,3406.3,2.4146]
[1721139795314,2.93506,3407.1,3406.3,2.4146]
[1721139795520,2.93528,3406.9,3406.3,2.4146]
[1721139796512,3.522264,3406.9,3406.3,2.4146]
[1721139796717,2.93547,3406.7,3406.3,2.4146]
[1721139796913,2.93504,3407.2,3406.3,2.4146]
[1721139797224,2.93514,3407.0,3406.3,2.4146]
[1721139797433,2.93504,3407.2,3406.3,2.949656]
[1721139797652,2.93467,3407.6,3406.3,2.949656]
[1721139797855,2.93532,3406.8,3406.3,2.4146]
[1721139798018,2.935,3407.2,3406.3,2.4146]
[1721139798245,2.93538,3406.8,3406.3,2.4146]
[1721139798483,3.382,3407.3,3406.3,2.4146]
[1721139798484,6.31688,3407.3,3406.3,2.4146]
[1721139798682,2.93455,3407.7,3406.3,2.4146]
[1721139798890,2.93479,3407.4,3406.4,3.470656]
[1721139799047,2.93487,3407.3,3406.4,3.470656]
[1721139799396,2.93474,3407.5,3406.5,0.55]
[1721139799575,2.93474,3407.5,3406.7,2.93539]
[1721139799776,6.31647,3407.8,3406.7,2.93539]
[1721139799777,2.93458,3407.7,3406.7,2.93539]
[1721139799980,2.93458,3407.7,3406.8,0.642095]
[1721139800185,3.382,3408.3,3406.9,2.464]
[1721139800387,2.93472,3407.5,3406.9,2.464]
[1721139800745,2.9345,3407.8,3406.9,2.464]
[1721139801081,2.9346,3407.7,3406.9,2.464]
[1721139801379,3.382,3408.3,3406.9,2.464]
[1721139801380,2.93489,3407.3,3406.9,2.464]
[1721139801583,2.9345,3407.8,3406.9,2.464]
[1721139801780,2.93453,3407.7,3406.9,2.464]
[1721139802000,3.382,3408.3,3407.0,0.05869758]
[1721139802146,3.90503168,3408.6,3406.5,3.0]
[1721139802147,2.93376,3408.6,3407.3,2.464]
[1721139802473,2.93376,3408.6,3406.8,2.93528]
[1721139802474,2.9345,3407.8,3406.8,2.464]
[1721139802657,2.93501,3407.2,3406.8,2.464]
[1721139802995,2.93469,3407.6,3406.8,2.464]
[1721139803145,2.93488,3407.3,3406.8,2.464]
[1721139803484,3.382,3407.8,3407.0,2.93513]
[1721139803485,2.93445,3407.8,3407.0,2.93513]
[1721139803778,2.9349,3407.3,3406.8,2.464]
[1721139805169,2.93497,3407.2,3406.8,2.464]
[1721139805708,2.93535,3406.8,3406.1,2.4944]
[1721139806208,2.9354,3406.7,3406.1,2.4944]
[1721139807393,2.93534,3406.8,3406.1,2.4944]
[1721139807598,2.93539,3406.7,3406.1,2.4944]
[1721139808090,2.93539,3406.7,3406.1,3.4261807]
[1721139808582,2.93548,3406.6,3406.1,3.4261807]
[1721139808793,3.092,3407.4,3406.1,3.4261807]
[1721139808794,2.93484,3407.4,3406.2,2.93581]
[1721139808951,10.22146168,3407.9,3406.6,2.93539]
[1721139808952,2.93475,3407.5,3406.6,2.93539]
[1721139809153,3.382,3408.4,3406.7,5.3412]
[1721139809359,3.382,3408.4,3407.1,2.93502]
[1721139809983,2.93444,3407.8,3407.1,2.93502]
[1721139810672,2.93432,3408.0,3407.2,2.48]
[1721139810874,2.93432,3408.0,3407.3,0.541502]
[1721139811096,2.93444,3407.8,3407.2,2.48]
[1721139811296,2.93463,3407.6,3407.2,2.48]
[1721139811503,2.93479,3407.4,3407.2,2.48]
[1721139811699,3.092,3408.3,3407.2,2.48]
[1721139811700,2.93448,3407.8,3407.2,2.48]
[1721139811995,2.93431,3408.0,3407.2,2.48]
[1721139812203,2.93483,3407.4,3407.2,2.48]
[1721139812868,2.93489,3407.3,3406.7,3.0]
[1721139813184,6.767431,3407.9,3406.6,1.176223]
[1721139813185,2.93476,3407.5,3406.6,4.176223]
[1721139813361,2.93494,3407.3,3406.6,3.0]
[1721139813568,3.227821,3407.9,3406.6,3.0]
[1721139813569,2.93506,3407.1,3406.6,3.0]
[1721139813765,2.93518,3407.0,3406.6,3.0]
[1721139814197,0.293431,3407.9,3406.6,5.93541]
[1721139814386,2.93475,3407.5,3406.6,5.93541]
[1721139814678,2.93456,3407.7,3406.7,4.055307]
[1721139814970,0.293431,3407.9,3406.8,3.0]
[1721139814971,2.9348,3407.4,3406.8,3.0]
[1721139815169,2.9348,3407.4,3406.6,3.0]
[1721139815170,0.293431,3407.9,3406.6,3.0]
[1721139815368,2.93486,3407.4,3406.6,2.93547]
[1721139815593,0.293431,3407.9,3406.5,2.3282]
[1721139815594,2.93508,3407.1,3406.7,3.0]
[1721139815793,3.385431,3407.9,3406.5,2.3282]
[1721139815794,2.93532,3406.8,3406.5,2.3282]
[1721139816187,2.93547,3406.6,3406.5,2.3282]
[1721139816500,2.93557,3406.5,3406.0,2.3739]
[1721139817311,2.93547,3406.6,3406.0,2.3739]
[1721139817312,2.93569,3406.4,3406.0,2.3739]
[1721139817968,2.93547,3406.6,3406.0,2.3739]
[1721139818368,2.93494,3407.3,3406.0,3.634912]
[1721139818596,2.93513,3407.0,3406.2,2.93576]
[1721139818806,3.90503168,3409.5,3406.3,2.3739]
[1721139818989,2.93398,3408.4,3407.5,2.93464]
[1721139819191,2.93347,3409.0,3407.5,2.93464]
[1721139819192,2.93401,3408.3,3407.6,2.3739]
[1721139819390,2.93428,3408.0,3407.6,2.3739]
[1721139819591,3.520966,3408.2,3407.6,2.3739]
[1721139819790,2.93399,3408.4,3407.6,2.3739]
[1721139819998,2.93402,3408.3,3407.6,2.3739]
[1721139820383,2.93411,3408.2,3407.6,2.3739]
[1721139820779,2.93425,3408.1,3407.6,2.3739]
[1721139820980,3.521077,3408.1,3407.6,2.3739]
[1721139821204,2.93428,3408.0,3407.6,2.3739]
[1721139821973,2.93405,3408.3,3407.6,2.3739]
[1721139822185,2.93384,3408.5,3407.6,5.30849]
[1721139822384,2.9336,3408.8,3407.7,2.93449]
[1721139822593,2.9336,3408.8,3407.8,2.93443]
[1721139822594,2.93383,3408.6,3407.8,2.93443]
[1721139823178,2.93365,3408.8,3408.0,2.93426]
[1721139823499,2.93341,3409.0,3408.1,2.93416]
[1721139823500,2.93345,3409.0,3408.1,2.93416]
[1721139823677,2.93358,3408.8,3408.1,2.93416]
[1721139824210,2.93373,3408.7,3407.6,5.30848]
[1721139824430,3.520461,3408.7,3407.7,3.55]
[1721139824717,2.93385,3408.5,3407.7,3.0]
[1721139825013,2.93385,3408.5,3407.7,5.93452]
[1721139825316,2.93376,3408.6,3407.7,5.93452]
[1721139825475,2.93389,3408.5,3407.7,5.93452]
[1721139825809,2.93389,3408.5,3407.7,3.0]
[1721139826384,2.93389,3408.5,3407.6,6.132841]
[1721139826385,2.93407,3408.3,3407.6,2.3739]
[1721139826801,2.93424,3408.1,3407.6,2.3739]
[1721139827114,2.93396,3408.4,3407.6,2.3739]
[1721139827292,2.93408,3408.3,3407.6,2.3739]
[1721139827691,2.93416,3408.2,3407.6,2.3739]
[1721139828014,2.93383,3408.6,3407.6,3.204777]
[1721139828437,2.93383,3408.6,3407.8,2.93443]
[1721139829031,2.93386,3408.5,3407.7,2.93451]
[1721139829990,2.93386,3408.5,3407.7,5.86895]
[1721139830497,3.520624,3408.5,3407.6,5.30851]
[1721139830697,3.520624,3408.5,3407.7,2.93447]
[1721139830917,2.93386,3408.5,3407.7,2.93447]
[1721139831104,2.93386,3408.5,3407.8,2.93443]
[1721139831989,2.93368,3408.7,3407.8,2.93443]
[1721139832426,2.93353,3408.9,3408.0,2.93421]
[1721139832427,2.93359,3408.8,3408.0,2.93421]
[1721139833257,2.93339,3409.1,3408.1,2.3056]
[1721139833521,3.520049,3409.1,3408.3,2.934]
[1721139833825,5.86642,3409.3,3408.3,2.934]
[1721139834127,3.096,3409.8,3408.5,2.93381]
[1721139834689,2.9332,3409.3,3408.5,2.93381]
[1721139835303,2.93284,3409.7,3408.6,2.93372]
[1721139835507,2.93303,3409.5,3408.8,2.3506]
[1721139835765,2.93308,3409.4,3408.8,2.3506]
[1721139836112,9.02846,3410.1,3408.9,2.93343]
[1721139836113,2.93275,3409.8,3408.9,2.93343]
[1721139836630,2.93292,3409.6,3408.9,2.93343]
[1721139837224,2.93292,3409.6,3409.0,2.93341]
[1721139837431,2.93281,3409.7,3408.9,2.93346]
[1721139837627,2.93281,3409.7,3408.9,5.86688]
[1721139837628,3.519366,3409.7,3408.9,5.86688]
[1721139838225,3.519366,3409.7,3408.8,2.3506]
[1721139838530,2.93322,3409.3,3408.8,2.3506]
[1721139838873,0.586556,3409.7,3408.4,2.497]
[1721139838874,2.93333,3409.1,3408.4,2.497]
[1721139839159,2.93355,3408.9,3408.4,2.497]
[1721139839318,2.93394,3408.4,3407.8,2.497]
[1721139840336,2.93382,3408.6,3407.8,5.43142]
[1721139840656,2.93324,3409.2,3407.8,5.43142]
[1721139840657,2.93326,3409.2,3408.0,2.93423]
[1721139840831,2.93357,3408.9,3407.9,3.0]
[1721139841034,2.93318,3409.3,3407.8,2.497]
[1721139841247,2.93396,3408.4,3407.8,2.497]
[1721139841756,2.93378,3408.6,3407.8,2.497]
[1721139841984,2.93385,3408.5,3407.8,2.497]
[1721139842671,2.93393,3408.4,3407.8,2.497]
[1721139843660,2.9338,3408.6,3407.8,2.497]
[1721139844026,2.93385,3408.5,3407.8,2.497]
[1721139844422,2.93367,3408.7,3407.8,2.497]
[1721139844657,0.293318,3409.2,3408.0,2.93419]
[1721139844658,2.93342,3409.0,3408.0,2.93419]
[1721139844958,2.93335,3409.1,3407.8,3.340166]
[1721139844959,2.93309,3409.4,3408.3,2.93394]
[1721139845270,2.93309,3409.4,3408.5,2.93383]
[1721139845617,3.096,3410.1,3408.5,2.9338]
[1721139845822,2.93311,3409.4,3408.5,2.9338]
[1721139846025,2.9333,3409.2,3408.5,0.822488]
[1721139846237,2.9333,3409.2,3408.4,2.3571]
[1721139846467,2.9333,3409.2,3408.4,5.291]
[1721139847278,2.9333,3409.2,3408.5,2.93384]
[1721139847948,6.02895,3409.6,3408.4,2.3571]
[1721139848147,6.02895,3409.6,3407.9,3.0]
[1721139848148,2.93365,3408.8,3407.9,5.2617]
[1721139848348,2.93372,3408.7,3407.9,8.19605]
[1721139848681,2.93368,3408.7,3407.9,5.2617]
[1721139848843,2.93338,3409.1,3407.9,5.2617]
[1721139849040,0.602895,3409.5,3407.9,5.2617]
[1721139849041,2.93367,3408.7,3407.9,2.2617]
[1721139849297,2.93354,3408.9,3408.2,2.93409]
[1721139849880,2.93354,3408.9,3407.9,2.78787]
[1721139850085,5.86711,3408.9,3408.0,5.93426]
[1721139850275,2.93358,3408.8,3408.0,5.93426]
[1721139850485,2.93354,3408.9,3408.0,5.93426]
[1721139850650,0.602895,3409.5,3408.1,2.9341]
[1721139850846,2.93318,3409.3,3408.5,2.93383]
[1721139851051,2.93286,3409.7,3408.8,2.93356]
[1721139851361,2.93286,3409.7,3408.6,2.93375]
[1721139851362,2.93326,3409.2,3408.5,5.23642]
[1721139851574,2.93339,3409.1,3408.5,2.3026]
[1721139851753,2.93341,3409.0,3408.5,2.3026]
[1721139851953,2.93326,3409.2,3408.5,2.3026]
[1721139852365,2.9331,3409.4,3408.6,2.93368]
[1721139852573,1.21368238,3409.9,3408.5,2.3026]
[1721139852574,2.9334,3409.1,3408.5,2.3026]
[1721139853176,5.86709,3408.9,3408.5,2.3026]
[1721139853351,2.93351,3408.9,3408.5,2.3026]
[1721139853549,2.93362,3408.8,3408.5,2.3026]
[1721139854095,2.93362,3408.8,3408.2,3.0]
[1721139854406,2.93372,3408.7,3408.1,7.3]
[1721139854653,2.93387,3408.5,3408.1,7.3]
[1721139855101,2.934,3408.4,3408.1,7.3]
[1721139855302,2.93425,3408.1,3407.4,2.3668]
[1721139855614,2.93464,3407.6,3407.4,2.3668]
[1721139856145,2.93449,3407.8,3407.4,2.3668]
[1721139856644,2.9347,3407.5,3406.8,2.3883]
[1721139857518,2.9347,3407.5,3406.8,5.3236]
[1721139857721,2.9347,3407.5,3406.8,8.095498]
[1721139858236,4.73568827,3408.3,3407.2,2.93495]
[1721139858447,0.586787,3408.3,3407.3,2.93486]
[1721139858647,2.93435,3408.0,3407.3,2.93486]
[1721139858852,2.93388,3408.5,3407.6,2.93456]
[1721139859022,2.93388,3408.5,3407.5,2.4332]
[1721139859023,2.93424,3408.1,3407.5,2.4332]
[1721139860323,2.93454,3407.7,3407.0,2.4332]
[1721139860738,2.93462,3407.6,3407.0,2.4332]
[1721139861954,2.93489,3407.3,3407.0,2.4332]
[1721139862165,2.93486,3407.4,3406.2,2.93579]
[1721139862166,2.93496,3407.2,3406.5,2.4643]
[1721139862334,2.93486,3407.4,3406.5,2.4643]
[1721139862533,3.521546,3407.6,3406.5,5.3998]
[1721139862534,2.93488,3407.3,3406.5,5.3998]
[1721139862845,2.93498,3407.2,3406.5,5.3998]
[1721139863045,2.93488,3407.3,3406.5,5.3998]
[1721139863224,2.93497,3407.2,3406.6,3.0]
[1721139863421,3.38610076,3407.2,3406.5,2.4643]
[1721139863757,2.93545,3406.7,3405.9,2.478]
[1721139864119,2.93552,3406.6,3405.9,2.478]
[1721139864434,2.93545,3406.7,3405.9,5.41407]
[1721139864614,2.93545,3406.7,3405.9,2.478]
[1721139864615,2.93553,3406.6,3405.9,2.478]
[1721139864818,2.93566,3406.4,3405.9,2.478]
[1721139865260,3.682906,3406.6,3405.2,7.3]
[1721139865420,2.93626,3405.7,3405.3,2.2832]
[1721139865620,2.93635,3405.6,3405.3,2.2832]
[1721139866260,1.51839336,3406.2,3404.6,2.4459]
[1721139866261,2.93665,3405.3,3404.6,2.4459]
[1721139866423,2.93644,3405.5,3404.6,3.71423]
[1721139866424,2.93669,3405.2,3404.6,3.71423]
[1721139866621,2.93669,3405.2,3404.6,2.4459]
[1721139867068,2.93683,3405.1,3404.6,2.4459]
[1721139867249,3.382,3405.8,3403.9,7.3]
[1721139867250,3.096,3405.5,3403.9,7.3]
[1721139867449,5.87421,3404.8,3404.0,2.4547]
[1721139867627,5.87421,3404.8,3404.1,0.24547]
[1721139867628,2.9371,3404.8,3404.1,0.24547]
[1721139868062,2.93711,3404.7,3404.0,2.4547]
[1721139868355,2.93739,3404.4,3404.0,2.4547]
[1721139868721,2.93739,3404.4,3403.4,2.4721]
[1721139869055,2.9372,3404.6,3403.5,2.93814]
[1721139869355,2.93703,3404.8,3403.7,2.93795]
[1721139869591,3.382,3405.3,3403.9,2.93774]
[1721139869592,2.93712,3404.7,3403.9,2.93774]
[1721139869854,2.93738,3404.4,3403.8,0.293795]
[1721139870180,2.93678,3405.1,3403.4,2.4721]
[1721139870181,2.93781,3403.9,3403.4,2.4721]
[1721139870845,2.261,3405.1,3402.8,2.2782]
[1721139870846,3.096,3404.1,3402.8,2.2782]
[1721139871044,1.5,3404.6,3402.7,0.1466605]
[1721139871045,2.93856,3403.1,3402.7,0.1466605]
[1721139871423,2.9386,3403.0,3402.7,0.1466605]
[1721139872279,2.93842,3403.2,3402.7,0.1466605]
[1721139872476,2.9386,3403.0,3402.7,0.1466605]
[1721139872827,2.93875,3402.8,3402.7,0.1466605]
[1721139873133,3.096,3403.5,3402.7,0.1466605]
[1721139873372,2.93875,3402.8,3402.7,0.1466605]
[1721139874056,2.93841,3403.2,3402.7,0.1466605]
[1721139874241,6.31996,3403.8,3402.7,0.1466605]
[1721139874242,2.93855,3403.1,3402.7,0.1466605]
[1721139874457,3.096,3403.6,3402.7,0.1466605]
[1721139874633,2.93847,3403.2,3402.7,0.1466605]
[1721139874839,3.0,3403.5,3402.7,0.1466605]
[1721139874840,2.93833,3403.3,3402.7,0.1466605]
[1721139875264,2.93842,3403.2,3402.7,0.1466605]
[1721139875626,2.93858,3403.1,3402.7,0.1466605]
[1721139875826,2.93858,3403.0,3402.7,0.1466605]
[1721139876022,2.93842,3403.2,3402.7,0.1466605]
[1721139876252,2.93839,3403.3,3402.7,0.1466605]
[1721139876466,2.93735,3404.5,3402.7,0.1466605]
[1721139876467,3.90503168,3405.1,3402.8,2.2545]
[1721139876678,1.7,3405.7,3402.7,0.1466605]
[1721139876679,0.72870317,3405.0,3403.5,2.2545]
[1721139876866,2.93746,3404.3,3403.5,5.19261]
[1721139877323,2.9371,3404.8,3403.6,2.93805]
[1721139877528,3.096,3404.9,3403.5,2.2545]
[1721139877529,3.382,3405.2,3403.7,2.93797]
[1721139877731,6.31876,3405.2,3403.9,2.9378]
[1721139877972,2.93686,3405.0,3404.0,2.9377]
[1721139878132,2.93686,3405.0,3404.1,2.93755]
[1721139878464,2.93686,3405.0,3404.0,2.9377]
[1721139878465,2.93671,3405.2,3404.2,2.93753]
[1721139878668,2.93661,3405.3,3404.3,2.93744]
[1721139878877,2.93651,3405.4,3404.5,5.37046]
[1721139879047,3.230161,3405.4,3404.5,5.37046]
[1721139879375,3.230161,3405.4,3404.5,2.4332]
[1721139880076,2.93634,3405.6,3404.5,5.37047]
[1721139880230,2.9362,3405.8,3404.5,5.37047]
[1721139880579,2.93611,3405.9,3404.5,2.4332]
[1721139880745,2.936,3406.0,3404.8,2.93698]
[1721139881101,2.93617,3405.8,3404.9,2.93693]
[1721139881376,2.93617,3405.8,3405.0,0.293693]
[1721139881663,3.382,3406.7,3404.6,3.55]
[1721139881865,2.4792,3407.1,3404.6,3.55]
[1721139881866,2.93574,3406.3,3405.4,2.9365]
[1721139882071,2.93565,3406.4,3405.5,2.3028]
[1721139882271,3.90503168,3407.5,3405.5,2.3028]
[1721139882272,2.93583,3406.2,3405.5,2.3028]
[1721139882433,2.93583,3406.2,3405.0,2.93685]
[1721139882434,2.93634,3405.6,3404.8,9.6137]
[1721139882635,2.93617,3405.8,3404.9,2.93693]
[1721139882835,0.293583,3406.1,3404.9,2.93693]
[1721139882836,2.93634,3405.6,3404.9,2.93693]
[1721139883149,2.93634,3405.6,3404.8,2.3137]
[1721139883350,0.293583,3406.1,3404.8,5.25066]
[1721139883351,2.93625,3405.7,3404.8,5.25066]
[1721139883581,2.93601,3406.0,3404.8,2.3137]
[1721139883582,2.93604,3406.0,3404.8,2.3137]
[1721139883885,2.93678,3405.1,3404.2,7.3]
[1721139884036,2.93678,3405.1,3404.3,2.93744]
[1721139884374,3.382,3406.2,3404.2,7.3]
[1721139884534,2.9364,3405.6,3404.8,2.937]
[1721139884752,2.9364,3405.6,3404.8,3.524426]
[1721139884959,3.0,3406.5,3404.8,3.524426]
[1721139884960,2.93602,3406.0,3405.1,2.93671]
[1721139885181,2.93593,3406.1,3405.1,2.93671]
[1721139885383,2.9355,3406.6,3405.1,2.93671]
[1721139885556,2.93606,3406.0,3405.1,2.9367]
[1721139885890,2.93606,3406.0,3405.2,0.836582]
[1721139886089,2.93617,3405.8,3405.0,3.0]
[1721139886453,2.93617,3405.8,3404.9,5.4922]
[1721139886780,2.93626,3405.7,3404.9,5.4922]
[1721139887171,2.93605,3406.0,3404.9,5.4922]
[1721139887373,2.93585,3406.2,3405.0,2.93684]
[1721139887579,2.93596,3406.1,3405.3,2.93659]
[1721139887783,3.0,3406.9,3405.3,2.93659]
[1721139887784,2.93567,3406.4,3405.5,2.9364]
[1721139887961,2.93549,3406.6,3405.5,2.9364]
[1721139888162,2.93573,3406.3,3405.3,2.93659]
[1721139888379,2.93573,3406.3,3405.5,2.93642]
[1721139888588,2.93573,3406.3,3405.5,3.523721]
[1721139888794,2.93557,3406.5,3405.6,2.93631]
[1721139889096,2.93566,3406.4,3405.6,2.93631]
[1721139890103,2.93575,3406.3,3405.5,0.587301]
[1721139890301,2.93586,3406.2,3405.5,0.587301]
[1721139890512,2.93592,3406.1,3405.4,3.0]
[1721139890802,2.93592,3406.1,3405.3,5.93659]
[1721139892004,2.93601,3406.0,3405.3,3.0]
[1721139892250,2.93601,3406.0,3404.9,5.42911]
[1721139892251,3.523187,3406.0,3405.2,3.0]
[1721139892382,2.936,3406.0,3405.2,2.93663]
[1721139892931,2.936,3406.0,3405.0,2.93685]
[1721139893109,2.93626,3405.7,3405.1,3.0]
[1721139893451,4.4348,3407.4,3405.1,3.0]
[1721139893452,1.5,3407.4,3405.2,2.4718]
[1721139893745,2.93487,3407.3,3406.3,2.4718]
[1721139893884,2.93487,3407.3,3406.4,2.93558]
[1721139894321,2.93513,3407.1,3406.3,2.4718]
[1721139894526,2.93506,3407.1,3406.3,2.4718]
[1721139894990,2.93515,3407.0,3406.3,2.4718]